[Event "Czech Championship 2022"]
[Site "Usti nad Labem"]
[Date "2022.05.14"]
[Round "1.24"]
[White "Sura, Jaroslav"]
[Black "Smolik, Jachym"]
[Result "0-1"]
[ECO "B12"]
[WhiteElo "2010"]
[BlackElo "2272"]
[Annotator "TA"]
[PlyCount "46"]
[EventDate "2022.05.12"]
[EventType "swiss"]
[EventCountry "CZE"]
[SourceTitle "playchess.com"]
[Source "ChessBase"]
[SourceQuality "1"]
[TimeControl "40/5400+30:1800+30"]

{[%evp 11,46,23,24,17,7,-29,-25,-9,-18,-24,2,-132,-28,-70,-45,-96,-100,-112,-41,-200,-97,-134,-143,-204,-216,-314,-329,-410,-379,-439,-421,-560,-459,-446,-453,-496,-477]} 1. e4 {[%emt 0:00:03]} c6 {[%emt 0:00:06]} 2. d4 {[%emt 0:00:06]} d5 {[%emt 0:00:06]} 3. f3 {[%emt 0:00:17]} dxe4 {[%emt 0:00:47]} 4. fxe4 {[%emt 0:00:19]} e5 {[%emt 0:00:08]} 5. Nf3 {[%emt 0:00:38]} Bg4 {[%emt 0:00:51]} 6. Bc4 {[%emt 0:00:20]} Nd7 {[%emt 0:00:48]} 7. O-O {[%emt 0:01:15][%cal Oc4f7] B12: Caro-Kann: Advance Variation.} (7. c3 $5 {[%cal Rd1b3]}) 7... Ngf6 {[%emt 0:01:16]} 8. Be3 {[%emt 0:05:09]} Bd6 {[%emt 0:02:16]} 9. c3 {[%emt 0:01:11] Black has an edge.} O-O {[%emt 0:00:56]} 10. Nbd2 {[%emt 0:01:12]} Qc7 {[%emt 0:12:56] [#] White must now prevent ...exd4.} 11. Qb3 $146 {[%emt 0:06:01] [#]} (11. h3 $11 {keeps the balance.} Bh5 12. Bd3) ({Predecessor:} 11. h3 Bh5 12. Qc2 b5 13. Bd3 Rab8 14. a4 a6 15. axb5 axb5 16. dxe5 Nxe5 17. Ra7 {0-1 (36) Klepek,W (2201)-Goluch,P (2415) Krakow 2019}) 11... Rae8 {[%emt 0:06:31]} (11... b5 $1 $17 {[%cal Rb5c4]} 12. Be2 Be6) 12. Rae1 {[%emt 0:27:38]} Bh5 {[%emt 0:09:45]} 13. h3 {[%emt 0:10:03]} ({White should try} 13. Bd3 $15) 13... exd4 $17 {[%emt 0:13:10]} 14. Bxd4 {[%emt 0:03:14]} Bg3 {[%emt 0:05:53] Against e5} (14... h6 $17 15. Bd3 Bg3) 15. Re2 $2 {[%emt 0:09:25] [#]} (15. e5 $1 $15 Nxe5 16. Bxe5 Bxe5 17. Nxe5 Rxe5 18. Rxe5 Qxe5 19. Qxb7) 15... Bg6 {[%emt 0:09:13]} (15... b5 $19 16. Bd3 c5) 16. Bd3 {[%emt 0:05:51]} Nh5 {[%emt 0:03:15] And now ...Nf4 would win.} 17. Bb1 {[%emt 0:04:01]} (17. Bf2 $17 {was the only chance.}) 17... Nf4 $19 {[%emt 0:03:25]} 18. Re3 {[%emt 0:00:43]} (18. Ref2 $142) 18... c5 {[%emt 0:01:24]} 19. Qc4 {[%emt 0:09:16]} Ne6 {[%emt 0:00:57]} 20. Qd3 {[%emt 0:05:17]} cxd4 {[%emt 0:00:54] Black is clearly winning.} 21. Nxd4 {[%emt 0:00:42]} Nxd4 {[%emt 0:01:00]} 22. cxd4 {[%emt 0:02:13]} Bf4 {[%emt 0:00:45]} 23. Ree1 {[%emt 0:00:51]} Nf6 {[%emt 0:01:08] Weighted Error Value: White=0.70/Black=0.29 (precise)} 0-1

[Event "Czech Championship 2022"]
[Site "Usti nad Labem"]
[Date "2022.05.17"]
[Round "4.1"]
[White "Zwardon, Vojtech"]
[Black "Hracek, Zbynek"]
[Result "1/2-1/2"]
[ECO "D27"]
[WhiteElo "2482"]
[BlackElo "2570"]
[Annotator "TA"]
[PlyCount "44"]
[EventDate "2022.05.12"]
[EventType "swiss"]
[EventCountry "CZE"]
[SourceTitle "playchess.com"]
[Source "ChessBase"]
[SourceQuality "1"]
[TimeControl "40/5400+30:1800+30"]

{[%evp 18,44,0,-13,0,0,0,0,0,0,0,0,0,0,0,0,0,0,0,0,0,0,0,-12,0,-8,0,-18,0]} 1. c4 {[%emt 0:05:55]} e6 {[%emt 0:00:06]} 2. Nf3 {[%emt 0:00:03]} d5 {[%emt 0:00:07]} 3. e3 {[%emt 0:00:03]} Nf6 {[%emt 0:00:08]} 4. Nc3 {[%emt 0:00:04]} c5 {[%emt 0:00:54]} 5. d4 {[%emt 0:00:05]} dxc4 {[%emt 0:00:19]} 6. Bxc4 {[%emt 0:00:14]} a6 {[%emt 0:00:05]} 7. a3 {[%emt 0:01:36]} b5 {[%emt 0:00:15]} 8. Ba2 {[%emt 0:00:05]} Bb7 {[%emt 0:00:34]} 9. O-O {[%emt 0:00:08]} Nbd7 {[%emt 0:00:16]} 10. Qe2 {[%emt 0:01:00] The position is equal.} Bd6 {[%emt 0:00:40] D27: Queen's Gambit Accepted: Classical main line: 7 e4!? and 7 a4.} 11. Rd1 {[%emt 0:04:15]} Qb8 {[%emt 0:09:57]} 12. h3 {[%emt 0:01:20]} O-O {[%emt 0:00:31]} 13. dxc5 {[%emt 0:00:58]} Nxc5 {[%emt 0:00:08]} 14. b4 {[%emt 0:00:14]} Ncd7 {[%emt 0:04:53][%cal Bc5d7,Bd7e5,Be5g6][%mdl 32]} 15. Bb2 {[%emt 0:10:09]} Ne5 {[%emt 0:08:39] [#]} 16. Nd2 $146 {[%emt 0:07:29]} ({Predecessor:} 16. Nxe5 Bxe5 17. Rac1 Rc8 18. Bb1 Bc6 19. f4 Bd6 20. g4 h6 21. g5 hxg5 22. fxg5 Bxb4 23. axb4 Qg3+ 24. Kf1 {0-1 (33) Vavrak,P (2487)-Erdos,V (2581) Rogaska Slatina 2009}) 16... Ng6 {[%emt 0:04:47]} 17. Nf3 {[%emt 0:01:02] Against Bh2+} Ne5 {[%emt 0:04:29]} 18. Nd2 {[%emt 0:00:38]} Rd8 {[%emt 0:02:40][%cal Oe5d3]} 19. Bb1 $1 {[%emt 0:00:10] Inhibits Nd3.} Ng6 {[%emt 0:04:30]} 20. Nf3 {[%emt 0:05:59] Prevents Bh2+.} Ne5 {[%emt 0:08:05]} 21. Nd2 {[%emt 0:00:09]} Ng6 {[%emt 0:00:04]} 22. Nf3 {[%emt 0:00:44]} Ne5 {[%emt 0:18:14] A balanced but interesting game.  Weighted Error Value: White=0.01 (flawless) /Black=0.02 (flawless)} 1/2-1/2

[Event "Czech Championship 2022"]
[Site "Usti nad Labem"]
[Date "2022.05.17"]
[Round "4.2"]
[White "Plat, Vojtech"]
[Black "Stalmach, Richard"]
[Result "1/2-1/2"]
[ECO "E66"]
[WhiteElo "2547"]
[BlackElo "2350"]
[Annotator "TA"]
[PlyCount "89"]
[EventDate "2022.05.12"]
[EventType "swiss"]
[EventCountry "CZE"]
[SourceTitle "playchess.com"]
[Source "ChessBase"]
[SourceQuality "1"]
[TimeControl "40/5400+30:1800+30"]

{[%evp 25,89,11,36,0,37,36,40,41,46,39,42,2,0,0,0,0,14,14,10,10,14,14,19,0,31,27,32,26,18,22,22,22,22,0,0,0,0,0,0,0,0,0,0,0,0,0,20,-74,-76,-86,-75,-93,-87,-92,0,-53,0,0,0,0,0,0,0,0,0,0]} 1. d4 {[%emt 0:01:02]} Nf6 {[%emt 0:00:08]} 2. c4 {[%emt 0:00:05]} g6 {[%emt 0:00:05]} 3. g3 {[%emt 0:00:05]} Bg7 {[%emt 0:00:05]} 4. Bg2 {[%emt 0:00:04]} O-O {[%emt 0:00:08]} 5. Nc3 {[%emt 0:00:03]} d6 {[%emt 0:00:08]} 6. Nf3 {[%emt 0:00:04]} c5 {[%emt 0:00:34]} 7. O-O {[%emt 0:00:18]} Nc6 {[%emt 0:00:09]} 8. d5 {[%emt 0:01:13]} Na5 {[%emt 0:00:12]} 9. Nd2 {[%emt 0:00:04]} a6 {[%emt 0:00:17]} 10. Qc2 {[%emt 0:00:05]} Rb8 {[%emt 0:00:15]} 11. b3 {[%emt 0:00:09]} b5 {[%emt 0:00:15]} 12. Bb2 {[%emt 0:00:28]} e5 {[%emt 0:00:27]} 13. e4 {[%emt 0:00:27]} Nh5 {[%emt 0:01:06]} 14. Ne2 {[%emt 0:03:27] E66: King's Indian: Fianchetto: 6...c5 7 0-0 Nc6 8 d5.} Bh6 {[%emt 0:16:30] [#]} 15. f4 $146 {[%emt 0:13:48]} ({Predecessor:} 15. Bc3 f5 16. exf5 Bxf5 17. Be4 b4 18. Bb2 Nb7 19. Bxf5 gxf5 20. Rae1 Qd7 21. f4 e4 {1-0 (30) Verlinden,D (2195)-Maes,W (2285) Ghent 2000}) 15... Bg4 {[%emt 0:22:06]} 16. Bf3 {[%emt 0:00:04] White is slightly better.} Bxf3 {[%emt 0:00:08]} 17. Nxf3 {[%emt 0:00:04]} f6 {[%emt 0:01:13]} 18. fxe5 {[%emt 0:05:45]} fxe5 {[%emt 0:00:54]} 19. Bc1 {[%emt 0:00:24]} Bxc1 {[%emt 0:00:46]} 20. Raxc1 {[%emt 0:01:55]} bxc4 {[%emt 0:03:19]} 21. bxc4 {[%emt 0:00:03]} Rb4 {[%emt 0:01:01]} 22. Nd2 {[%emt 0:02:39]} Rxf1+ {[%emt 0:14:09]} 23. Rxf1 {[%emt 0:00:10]} Rb7 {[%emt 0:01:30]} 24. Qc1 {[%emt 0:09:00]} Kg7 {[%emt 0:02:28]} 25. Nf3 {[%emt 0:04:05]} Rf7 {[%emt 0:08:33]} 26. Ng5 {[%emt 0:01:01]} Rxf1+ {[%emt 0:00:03]} 27. Kxf1 {[%emt 0:00:03] [#] Black must now prevent Ne6+.} Kg8 {[%emt 0:00:40]} 28. Kg2 {[%emt 0:02:58]} Ng7 {[%emt 0:00:47]} 29. Nf3 {[%emt 0:02:52]} Ne8 {[%emt 0:04:01]} 30. h4 {[%emt 0:00:53]} Nf6 {[%emt 0:03:14]} 31. Ng5 {[%emt 0:02:13]} Ng4 {[%emt 0:00:04] Hoping for ...Qf8.} 32. Kh3 {[%emt 0:10:31]} Nf2+ {[%emt 0:00:39]} 33. Kg2 {[%emt 0:00:06]} Ng4 {[%emt 0:00:03] aiming for ...Qf8.} 34. Kh3 {[%emt 0:00:04]} h5 {[%emt 0:01:10] Threatens to win with ...Qf8.} 35. Ng1 {[%emt 0:05:02]} Qd7 {[%emt 0:01:10][%cal Oa5c4] And now ...Nxc4! would win.} 36. Qb1 {[%emt 0:07:08] [#]} (36. Qa3 $11 Ne3+ 37. Ne6 Nexc4 38. Qd3) 36... Ne3+ $1 $17 {[%emt 0:04:21]} (36... Nxc4 $2 37. Qb8+ Kg7 38. Ne6+ Qxe6 39. dxe6 $18) 37. Ne6 {[%emt 0:00:05] Intending Qb8+ and mate.} Qb7 {[%emt 0:00:16] Inhibits Qb8+.} (37... Nexc4 {is a self mate.} 38. Qb8+ Kh7 39. Nf3 g5 40. Nfxg5+ Kg6 41. Qg8+ Kf6 42. Nh7+) 38. Qxb7 {[%emt 0:03:17]} Nxb7 {[%emt 0:00:04][%mdl 4096] Endgame KNN-KNN} 39. Ne2 {[%emt 0:00:12]} Nxc4 {[%emt 0:01:10]} ({Black should try} 39... Kf7 $17 40. Nc3 Ke7) 40. g4 {[%emt 0:00:13]} ({Better is} 40. Nc7 $11) 40... Nd2 {[%emt 0:01:12]} ({Black should play} 40... Na3 $15) 41. Nc3 $11 {[%emt 0:30:40] The position is equal.} Nf3 {[%emt 0:33:40]} 42. gxh5 {[%emt 0:00:15]} gxh5 {[%emt 0:00:04]} 43. Kg3 {[%emt 0:00:05]} Nd4 {[%emt 0:00:25]} 44. Nc7 $1 {[%emt 0:00:06]} a5 {[%emt 0:00:19]} 45. Na8 {[%emt 0:01:24] Weighted Error Value: White=0.14 (very precise) /Black=0.09 (flawless)} 1/2-1/2

[Event "Czech Championship 2022"]
[Site "Usti nad Labem"]
[Date "2022.05.17"]
[Round "4.3"]
[White "Babula, Vlastimil"]
[Black "Navara, David"]
[Result "1/2-1/2"]
[ECO "E59"]
[WhiteElo "2576"]
[BlackElo "2682"]
[Annotator "TA"]
[PlyCount "89"]
[EventDate "2022.05.12"]
[EventType "swiss"]
[EventCountry "CZE"]
[SourceTitle "playchess.com"]
[Source "ChessBase"]
[SourceQuality "1"]
[TimeControl "40/5400+30:1800+30"]

{[%evp 22,89,32,16,28,25,34,22,31,33,27,20,39,10,69,60,66,7,7,0,30,23,15,16,59,67,158,135,148,157,284,275,255,280,269,274,29991,271,274,267,245,229,233,84,75,57,165,167,145,0,0,0,0,0,0,0,0,0,10,0,0,0,0,0,0,0,0,0,0,0]} 1. d4 {[%emt 0:00:04]} Nf6 {[%emt 0:00:12]} 2. c4 {[%emt 0:00:13]} e6 {[%emt 0:00:04]} 3. Nc3 {[%emt 0:00:22]} Bb4 {[%emt 0:00:04]} 4. e3 {[%emt 0:00:17]} O-O {[%emt 0:04:59]} 5. Bd3 {[%emt 0:00:27]} d5 {[%emt 0:00:06]} 6. Nf3 {[%emt 0:00:30]} c5 {[%emt 0:00:29]} 7. O-O {[%emt 0:00:53]} Nc6 {[%emt 0:01:53]} 8. a3 {[%emt 0:01:47]} Bxc3 {[%emt 0:00:11]} 9. bxc3 {[%emt 0:00:06]} Qc7 {[%emt 0:03:10]} 10. h3 {[%emt 0:01:37]} dxc4 {[%emt 0:00:35]} 11. Bxc4 {[%emt 0:00:08]} e5 {[%emt 0:00:06]} 12. Ba2 {[%emt 0:01:04]} e4 {[%emt 0:14:23] E59: Nimzo-Indian: Rubinstein: Main Line: 7...Nc6 8 a3 Bxc3 9 bxc3 dxc4.} 13. Nd2 {[%emt 0:01:21]} Bf5 {[%emt 0:01:27]} 14. a4 {[%emt 0:04:39]} b6 {[%emt 0:04:40]} 15. Ba3 {[%emt 0:01:16]} Rfe8 {[%emt 0:07:47]} 16. Qe2 {[%emt 0:08:00]} Rad8 {[%emt 0:01:11]} 17. Rab1 {[%emt 0:03:42]} Be6 {[%emt 0:26:46] [#]} (17... Nd5 $11 18. Rfc1 Na5) 18. Bxe6 $146 {[%emt 0:21:05]} ({Predecessor:} 18. Bc4 Na5 19. Bb5 Re7 20. dxc5 bxc5 21. Rfd1 Rb8 22. Qf1 Rb6 23. Be2 {½-½ (23) Graham,S (2217)-Walczak,P (2189) ICCF email 2007}) 18... Rxe6 {[%emt 0:00:17]} 19. Nc4 {[%emt 0:02:32]} ({White should play} 19. dxc5 $14 h6 20. cxb6 axb6 21. Nc4) 19... Nd5 $11 {[%emt 0:03:47]} 20. Rfc1 {[%emt 0:01:12]} cxd4 {[%emt 0:03:35]} (20... f5 $5 {[%cal Rf5f4]}) 21. cxd4 {[%emt 0:00:40]} Qd7 {[%emt 0:00:12]} 22. Qc2 {[%emt 0:10:05][%cal Oc4d6]} f5 {[%emt 0:04:12]} 23. Rb5 {[%emt 0:05:38][%cal Oa3d6]} f4 {[%emt 0:05:27] [#]} (23... h6 $14) 24. Bd6 $1 $16 {[%emt 0:05:02][%mdl 512]} Rc8 {[%emt 0:06:35] Threatens to win with ...Na5.} (24... Nce7 25. Bxe7) 25. Qa2 $1 {[%emt 0:17:12]} ({Don't play} 25. Rxd5 $6 Nb4 $1 26. Bxb4 Qxd5 $11) ({But not} 25. exf4 $2 Nxd4 26. Qd1 Nxb5 $19) 25... f3 {[%emt 0:08:35]} (25... fxe3 $16 {was necessary.} 26. fxe3 (26. Rxd5 $2 Nb4 $17) 26... Nce7 27. Bxe7 Rxe7) 26. Rxd5 $18 {[%emt 0:06:07] aiming for Ne5.} Nb4 {[%emt 0:00:07] [#]} 27. Bxb4 {[%emt 0:00:26]} Qxd5 {[%emt 0:00:04] [#]} 28. Rc2 $1 {[%emt 0:00:52]} Rg6 $2 {[%emt 0:00:58]} (28... Rcc6 $18 29. Kh2 Rg6) 29. g4 $2 {[%emt 0:01:06]} (29. Ne5 {mates} Rxg2+ 30. Kh1 Rg1+ 31. Kxg1 Rc4 32. Rxc4 g5 33. Rc8+ Kg7 34. Qxd5 Kh6 35. Bf8+ Kh5 36. Qxe4 h6 37. Qg4#) 29... Rgc6 {[%emt 0:00:52][%cal Rc6c4] [#]} 30. Nd6 {[%emt 0:03:13]} Qxa2 {[%emt 0:00:29]} 31. Rxa2 {[%emt 0:00:03] The board is on fire.} Rc2 {[%emt 0:01:34]} 32. Nxc8 {[%emt 0:00:34]} (32. Ra1 $18 {has better winning chances.}) 32... Rxa2 $16 {[%emt 0:00:05]} 33. Nxa7 {[%emt 0:00:14]} Ra1+ {[%emt 0:01:19]} (33... Rxa4 $14 34. Nc6 Ra1+ 35. Kh2 Rf1) 34. Kh2 $18 {[%emt 0:00:03]} Rf1 {[%emt 0:00:07]} 35. Nc6 {[%emt 0:03:44]} ({Better is} 35. Nc8 $16) 35... Rxf2+ $11 {[%emt 0:00:18][%cal Bf1f2,Bf2a2,Ba2a1][%mdl 32] The position is equal.} 36. Kg1 {[%emt 0:00:06]} Ra2 {[%emt 0:01:09]} 37. d5 {[%emt 0:01:23]} Ra1+ {[%emt 0:00:28]} 38. Kf2 {[%emt 0:00:06] Black must now prevent d6.} Ra2+ {[%emt 0:00:38]} 39. Kf1 {[%emt 0:00:30] And now d6 would win.} Ra1+ {[%emt 0:00:29]} 40. Kf2 {[%emt 0:00:49]} Ra2+ {[%emt 0:00:29]} 41. Kf1 {[%emt 0:01:36] Strongly threatening d6.} Rxa4 {[%emt 0:05:53]} 42. d6 {[%emt 0:01:44]} Ra1+ {[%emt 0:00:13]} 43. Kf2 {[%emt 0:02:58]} Ra2+ {[%emt 0:00:29]} 44. Kf1 {[%emt 0:07:23]} Ra1+ {[%emt 0:00:24]} 45. Kf2 {[%emt 0:00:31] White really could win this.  Weighted Error Value: White=0.30/Black=0.43} 1/2-1/2

[Event "Czech Championship 2022"]
[Site "Usti nad Labem"]
[Date "2022.05.17"]
[Round "4.4"]
[White "Cernousek, Lukas"]
[Black "Finek, Vaclav"]
[Result "0-1"]
[ECO "B38"]
[WhiteElo "2440"]
[BlackElo "2410"]
[Annotator "TA"]
[PlyCount "58"]
[EventDate "2022.05.12"]
[EventType "swiss"]
[EventCountry "CZE"]
[SourceTitle "playchess.com"]
[Source "ChessBase"]
[SourceQuality "1"]
[TimeControl "40/5400+30:1800+30"]

{[%evp 21,58,26,33,30,31,38,39,35,106,109,116,75,72,59,56,56,162,0,0,-126,-102,-139,0,0,0,0,10,6,20,5,7,-72,-79,-172,-175,-292,-345,-297,-213]} 1. e4 {[%emt 0:00:49]} c5 {[%emt 0:00:06]} 2. Nf3 {[%emt 0:00:08]} g6 {[%emt 0:00:08]} 3. d4 {[%emt 0:02:13]} cxd4 {[%emt 0:00:08]} 4. Nxd4 {[%emt 0:00:09]} Bg7 {[%emt 0:00:08]} 5. c4 {[%emt 0:00:07]} Nc6 {[%emt 0:00:07]} 6. Be3 {[%emt 0:00:08]} Nf6 {[%emt 0:00:10]} 7. Nc3 {[%emt 0:00:25]} O-O {[%emt 0:00:11]} 8. Be2 {[%emt 0:00:07]} d6 {[%emt 0:00:08]} 9. O-O {[%emt 0:00:11]} Bd7 {[%emt 0:00:13]} 10. h3 {[%emt 0:00:12]} Nxd4 {[%emt 0:02:21]} 11. Bxd4 {[%emt 0:00:25]} Bc6 {[%emt 0:00:08]} 12. Qc2 {[%emt 0:00:12] B38: Sicilian: Maroczy Bind with 5...Bg7 and 7...0-0.} a5 {[%emt 0:01:30]} 13. Rad1 {[%emt 0:00:18]} Qc7 {[%emt 0:16:41]} 14. b3 {[%emt 0:32:03] White is slightly better.} b5 {[%emt 0:24:37]} (14... Nd7 $14) 15. cxb5 $16 {[%emt 0:26:13]} Bxe4 {[%emt 0:00:38] [#]} 16. Qb2 $146 {[%emt 0:00:03]} ({Predecessor:} 16. Bd3 Bb7 17. Bxf6 Bxf6 18. Nd5 Qxc2 19. Nxf6+ Kg7 20. Nh5+ gxh5 21. Bxc2 Rfc8 22. Bd3 {½-½ (47) Leitao,R (2616)-Escalante Ramirez,B (2447) Sao Paulo 2019}) 16... Bb7 {[%emt 0:01:47]} 17. Rc1 {[%emt 0:16:21][%cal Oc3e4]} Qb8 {[%emt 0:07:55]} 18. f4 {[%emt 0:04:38]} e5 {[%emt 0:11:09]} (18... Rc8 $14) 19. Be3 $2 {[%emt 0:04:40]} (19. fxe5 $18 dxe5 20. Bc5) 19... d5 $11 {[%emt 0:05:40][%cal Bd6d5,Bd5d4][%mdl 32] And now ...d4 would win.} 20. fxe5 {[%emt 0:00:23]} (20. Na4 $11) 20... Qxe5 $17 {[%emt 0:00:06]} 21. Qd2 {[%emt 0:00:40] [#]} Rfe8 {[%emt 0:02:36]} ({Better is} 21... Nh5 $1 $17 {Strongly threatening ...d4.} 22. Bxh5 d4) 22. Bf4 {[%emt 0:01:49]} Qe6 {[%emt 0:00:32][%cal Od5d4] White must now prevent ...d4!} 23. Bf3 {[%emt 0:07:27]} Qb6+ {[%emt 0:07:07]} 24. Qf2 $1 {[%emt 0:01:05]} d4 $1 {[%emt 0:03:09]} 25. Na4 {[%emt 0:00:50]} (25. Bxb7 Qxb7 26. Bg5 (26. Qxd4 $2 Ne4 $19) 26... Nh5 $17) 25... Qxb5 {[%emt 0:00:30]} 26. Bxb7 {[%emt 0:01:14]} ({Much weaker is} 26. Qxd4 Nh5 27. Qc4 Qxc4 28. Rxc4 Bxf3 29. Rxf3 Nxf4 30. Rfxf4 Rad8 $17) (26. Rc5 $1 $11 {remains equal.} Qa6 27. Bg5 (27. Qxd4 $2 Ne4 $19)) 26... Qxb7 {[%emt 0:00:06]} 27. Qxd4 {[%emt 0:00:32]} (27. Rc7 $17 Qb5 28. Bh6 Bxh6 29. Qxf6) 27... Re2 $19 {[%emt 0:09:24][%csl Ge2,LRa2,LRg2][%cal Rb7g2]} 28. Rf2 {[%emt 0:00:03] [#]} (28. Rf3 {was the only chance.}) 28... Nh5 $1 {[%emt 0:02:18]} 29. Qc4 {[%emt 0:00:59]} ({Wrong is} 29. Qb6 $2 Qxb6 30. Nxb6 Bd4 31. Nxa8 Bxf2+ 32. Kh2 Nxf4 $19) 29... Re4 {[%emt 0:01:22] Weighted Error Value: White=0.37/Black=0.17 (very precise)} 0-1

[Event "Czech Championship 2022"]
[Site "Usti nad Labem"]
[Date "2022.05.17"]
[Round "4.5"]
[White "Serrano Salvador, Eduardo"]
[Black "Stocek, Jiri"]
[Result "0-1"]
[ECO "E12"]
[WhiteElo "2286"]
[BlackElo "2533"]
[Annotator "TA"]
[PlyCount "70"]
[EventDate "2022.05.12"]
[EventType "swiss"]
[EventCountry "CZE"]
[SourceTitle "playchess.com"]
[Source "ChessBase"]
[SourceQuality "1"]
[TimeControl "40/5400+30:1800+30"]

{[%evp 9,70,4,35,0,31,7,0,8,0,9,14,0,7,0,0,0,0,-8,-13,-15,-12,-22,-6,-28,-38,-40,-19,-14,0,-33,-31,-39,-39,-35,-28,-45,-43,-47,-10,-60,-70,-283,-277,-359,-347,-481,-475,-490,-474,-450,-408,-409,-410,-409,-386,-388,-379,-420,-423,-606,-495,-1263,-492]} 1. d4 {[%emt 0:02:44]} Nf6 {[%emt 0:00:47]} 2. Nf3 {[%emt 0:00:14]} b6 {[%emt 0:00:37]} 3. c4 {[%emt 0:01:49]} e6 {[%emt 0:01:19]} 4. a3 {[%emt 0:00:14]} Ba6 {[%emt 0:00:43]} 5. e3 {[%emt 0:00:13]} c5 {[%emt 0:03:45]} 6. Nbd2 {[%emt 0:02:35] E12: Queen's Indian: Unusual White 4th moves, 4 a3, 4 Nc3 Bb7 5 a3 and 4 Nc3 Bb7 .} Be7 {[%emt 0:07:04]} 7. Bd3 {[%emt 0:01:32]} O-O {[%emt 0:06:34]} 8. O-O {[%emt 0:00:47] The position is equal.} Nc6 {[%emt 0:00:29]} 9. b3 {[%emt 0:02:53]} cxd4 {[%emt 0:00:49]} 10. exd4 {[%emt 0:00:17]} d5 {[%emt 0:00:19]} 11. Bb2 {[%emt 0:00:46]} Rc8 {[%emt 0:01:01]} 12. Qe2 {[%emt 0:03:47]} Re8 {[%emt 0:10:07]} 13. Rfd1 {[%emt 0:07:32]} Bf8 {[%emt 0:02:02]} 14. Rac1 {[%emt 0:01:13]} g6 {[%emt 0:03:29] [#]} 15. Ne5 $146 {[%emt 0:05:33]} ({Predecessor:} 15. Re1 dxc4 16. bxc4 Bg7 17. Nb3 Re7 18. Red1 Bb7 19. Ne5 a5 20. Re1 Nh5 21. Qe3 Nxe5 22. dxe5 Bxg2 {0-1 (35) Kelecevic,N (2186)-Tabatabaei,M (2601) Zuerich 2019}) 15... Bh6 {[%emt 0:11:05]} 16. Rc2 {[%emt 0:09:16]} dxc4 {[%emt 0:03:09]} 17. Ndxc4 {[%emt 0:01:20]} Bb7 {[%emt 0:03:32]} (17... Nxd4 $2 18. Bxd4 Bg7 {[#]} 19. Nxf7 $1 {[%mdl 512]} Qxd4 20. Ncd6 Bxd3 21. Rxd3 Rxc2 22. Qxc2 (22. Rxd4 $2 Rxe2 23. Kf1 Rb2 $19) 22... Qa1+ 23. Rd1 Qxa3 24. Nxe8 Nxe8 25. Ng5 $18) 18. Ne3 {[%emt 0:14:09] Threatens to win with Bb5.} Ne7 {[%emt 0:05:19]} 19. Rxc8 {[%emt 0:02:30]} Qxc8 {[%emt 0:01:00]} 20. Rc1 {[%emt 0:10:27]} Qb8 {[%emt 0:02:30]} 21. Bb5 {[%emt 0:07:01]} Rd8 {[%emt 0:09:01]} 22. Re1 {[%emt 0:02:15][%cal Oe5f7]} Bg7 {[%emt 0:02:12]} 23. Bc4 {[%emt 0:05:56][%cal Oe5f7]} Ne4 {[%emt 0:10:38] [#] White must now prevent ...Bxe5.} 24. N3g4 {[%emt 0:03:12]} (24. Qg4 $11 h5 25. Qf4) 24... Nf5 $15 {[%emt 0:04:58]} 25. d5 {[%emt 0:09:14] Loses the game.} ({White should play} 25. f3 $1 $15 Ned6 26. Bd3) 25... exd5 $19 {[%emt 0:02:05][%cal Be6d5,Bd5d4][%mdl 32]} 26. Nxf7 {[%emt 0:01:44]} Kxf7 {[%emt 0:00:59][%cal Bg8f7,Bf7g7,Bg7f8][%mdl 32]} (26... dxc4 27. Nxd8 Qxd8 28. Rd1 $11) 27. Bxg7 {[%emt 0:01:24]} (27. Qxe4 Bxb2 28. Qe6+ Kg7 $19) 27... Kxg7 {[%emt 0:01:05]} 28. Qb2+ {[%emt 0:01:08]} d4 {[%emt 0:00:23] Hoping for ...Qf4.} 29. f3 {[%emt 0:00:09]} Ned6 {[%emt 0:02:14]} 30. Re7+ {[%emt 0:00:16]} Kf8 {[%emt 0:03:16]} (30... Nxe7 {is a self mate.} 31. Qxd4+ Kf8 32. Qh8+) (30... Kh8 31. Qe2 Ne4 32. Rxe4 Bxe4 33. fxe4 $19) 31. Rxh7 {[%emt 0:00:13]} Nxc4 {[%emt 0:01:07]} 32. bxc4 {[%emt 0:01:26]} Bc6 {[%emt 0:00:28]} ({Not} 32... Re8 33. Qb4+ Qd6 34. Rxb7 $11) 33. Qd2 {[%emt 0:00:56] And now Qg5 would win.} Qd6 {[%emt 0:00:35]} 34. Qg5 {[%emt 0:00:27]} (34. Rh8+ $142 Kg7 35. Rxd8 Qxd8 36. Kf2) 34... Rd7 {[%emt 0:00:45]} ({Weaker is} 34... Re8 35. Nh6 Qe6 36. Rf7+ Qxf7 37. Nxf7 Kxf7 38. g4 $15) 35. Rh3 {[%emt 0:01:39]} (35. Rxd7 $142 Bxd7 36. Nf2) 35... Qe7 {[%emt 0:01:28] Weighted Error Value: White=0.52/Black=0.10 (very precise)} (35... d3 $142 36. Qd2 Qd4+ 37. Qf2 d2 38. Qxd4 Rxd4 39. Rh8+ Kg7) 0-1